fUST/lending_fUST_20250522
["ID","MTS","AMOUNT","RATE_DAILY","PERIOD"]
[361873030,1747859441306,-200.0,0.00025265,120]
[361873032,1747859441316,-163.483765,0.0002527,14]
[361873034,1747859441325,-420.0,0.00025271,2]
[361873036,1747859441334,-8228.90517184,0.00025295,2]
[361873038,1747859441344,-5000.0,0.00025295,2]
[361873040,1747859441353,-5000.0,0.00025295,2]
[361873042,1747859441362,-5000.0,0.00025295,5]
[361873044,1747859441372,-5000.0,0.00025295,2]
[361873046,1747859441382,-1351.71,0.00025295,2]
[361873048,1747859441391,-1111.91658,0.00025295,7]
[361873050,1747859441400,-1111.91658,0.00025295,7]
[361873052,1747859441410,-403.786189,0.00025295,7]
[361873054,1747859441420,-403.786189,0.00025295,7]
[361873056,1747859441429,-151.0,0.00025295,7]
[361873058,1747859441440,-151.0,0.00025303,7]
[361873060,1747859441449,-151.0,0.00025303,7]
[361873062,1747859441458,-292.268458,0.00025303,7]
[361873064,1747859441467,-1099.293196,0.00025303,2]
[361873065,1747859441476,-1099.293196,0.00025303,2]
[361873067,1747859441486,-686.36074,0.00025303,7]
[361873069,1747859441499,-686.36074,0.00025303,7]
[361873071,1747859441509,-344.754094,0.00025303,7]
[361873072,1747859441519,-344.754094,0.00025303,7]
[361873074,1747859441528,-151.0,0.00025303,7]
[361873076,1747859441539,-151.0,0.00025303,7]
[361873078,1747859441548,-158.383955,0.00025303,7]
[361873080,1747859441558,-158.383955,0.00025303,7]
[361873082,1747859441568,-151.0,0.00025303,7]
[361873085,1747859441578,-151.0,0.00025303,7]
[361873086,1747859441587,-434.693514,0.00025303,7]
[361873088,1747859441597,-902.010721,0.00025303,7]
[361873090,1747859441607,-434.693514,0.00025303,7]
[361873092,1747859441617,-902.010721,0.00025303,7]
[361873094,1747859441627,-191.31925,0.00025303,7]
[361873095,1747859441638,-191.31925,0.00025303,7]
[361873096,1747859441647,-1696.439124,0.00025303,7]
[361873097,1747859441657,-1696.439124,0.00025303,7]
[361873098,1747859441667,-153.010939,0.00025303,7]
[361873099,1747859441676,-153.010939,0.00025303,7]
[361873100,1747859441686,-5000.0,0.00025303,2]
[361873101,1747859441695,-5000.0,0.00025303,4]
[361873102,1747859441705,-5000.0,0.00025303,6]
[361873103,1747859441714,-5000.0,0.00025303,4]
[361873104,1747859441724,-5000.0,0.00025303,6]
[361873105,1747859441734,-430.0,0.00025325,2]
[361873106,1747859441743,-473.4,0.00025325,2]
[361873107,1747859441752,-915.25,0.00025325,2]
[361873108,1747859441761,-79265.11399601,0.00025327,3]
[361873109,1747859441771,-534.95,0.00025327,2]
[361873110,1747859441780,-430.0,0.00025327,2]
[361873111,1747859441789,-430.0,0.00025327,2]
[361873112,1747859441798,-430.0,0.00025327,2]
[361873113,1747859441808,-430.0,0.00025327,2]
[361873114,1747859441817,-1100.2125243,0.0002535,15]
[361873115,1747859441826,-2477.605,0.00025353,2]
[361873116,1747859441836,-2102.7778143,0.00025383,13]
[361873117,1747859441845,-480.0,0.00025388,2]
[361873118,1747859441854,-163.483765,0.0002545,15]
[361873119,1747859441864,-152.282009,0.0002545,15]
[361873120,1747859441874,-567.11,0.00025479,2]
[361873121,1747859441883,-536.01,0.00025479,2]
[361873122,1747859441892,-192.76,0.00025479,2]
[361873123,1747859441901,-438.56,0.00025479,2]
[361873124,1747859441910,-667.72,0.0002548,3]
[361873125,1747859441919,-813.63,0.000255,31]
[361873126,1747859441929,-813.63,0.000255,31]
[361873127,1747859441938,-813.63,0.000255,31]
[361873128,1747859441947,-813.63,0.000255,31]
[361873129,1747859441957,-813.63,0.000255,31]
[361873130,1747859441966,-813.63,0.000255,31]
[361873131,1747859441975,-813.63,0.000255,31]
[361873132,1747859441984,-813.63,0.000255,31]
[361873133,1747859441994,-813.63,0.000255,31]
[361873134,1747859442003,-813.63,0.000255,31]
[361873135,1747859442013,-813.63,0.000255,31]
[361873136,1747859442023,-813.63,0.000255,31]
[361873137,1747859442032,-813.63,0.000255,31]
[361873139,1747859442041,-813.63,0.000255,31]
[361873140,1747859442051,-813.63,0.000255,31]
[361873142,1747859442060,-813.63,0.000255,31]
[361873144,1747859442070,-1000.0,0.00025521,2]
[361873146,1747859442079,-215.0738,0.00025554,2]
[361873148,1747859442088,-151.0,0.00025554,2]
[361873150,1747859442098,-2102.7778143,0.00025555,13]
[361873152,1747859442107,-1351.71,0.00025569,2]
[361873153,1747859442116,-5000.0,0.00025572,30]
[361873154,1747859442126,-5000.0,0.00025572,30]
[361873155,1747859442135,-5000.0,0.00025572,30]
[361873156,1747859442144,-5000.0,0.00025572,30]
[361873157,1747859442154,-5000.0,0.00025572,30]
[361873158,1747859442163,-5000.0,0.00025572,30]
[361873159,1747859442173,-5000.0,0.00025572,30]
[361873161,1747859442182,-5000.0,0.00025572,30]
[361873163,1747859442191,-5000.0,0.00025572,30]
[361873165,1747859442201,-5000.0,0.00025572,30]
[361873167,1747859442210,-5000.0,0.00025572,30]
[361873169,1747859442220,-5000.0,0.00025572,30]
[361873171,1747859442230,-5000.0,0.00025572,30]
[361873173,1747859442239,-5000.0,0.00025572,30]
[361873175,1747859442249,-5000.0,0.00025572,30]
[361873177,1747859442259,-5000.0,0.00025572,30]
[361873178,1747859442269,-5000.0,0.00025572,30]
[361873179,1747859442279,-5000.0,0.00025572,30]
[361873180,1747859442288,-5000.0,0.00025572,30]
[361873182,1747859442297,-5000.0,0.00025572,30]
[361873183,1747859442307,-5000.0,0.00025572,30]
[361873184,1747859442317,-5000.0,0.00025572,30]
[361873185,1747859442327,-5000.0,0.00025572,30]
[361873186,1747859442336,-5000.0,0.00025572,30]
[361873187,1747859442346,-1011.22,0.00025572,30]
[361873188,1747859442357,-151.0,0.00025572,7]
[361873189,1747859442367,-191.31925,0.00025572,7]
[361873190,1747859442376,-191.31925,0.00025572,7]
[361873191,1747859442387,-153.010939,0.00025572,7]
[361873192,1747859442396,-153.010939,0.00025572,7]
[361873193,1747859442405,-1111.91658,0.00025572,7]
[361873194,1747859442415,-1111.91657869,0.00025572,7]
[361873195,1747859442424,-403.786189,0.00025572,7]
[361873196,1747859442433,-403.786187,0.00025572,7]
[361873197,1747859442442,-151.0,0.00025572,7]
[361873198,1747859442452,-430.0,0.00025599,2]
[361873199,1747859442462,-473.4,0.00025599,2]
[361873200,1747859442471,-915.25,0.00025599,2]
[361873201,1747859442481,-2000.0,0.000256,2]
[361873202,1747859442492,-8279.41,0.000256,7]
[361873203,1747859442502,-9885.97,0.000256,7]
[361873204,1747859442512,-151.0,0.000256,7]
[361873205,1747859442522,-304.193852,0.000256,7]
[361873206,1747859442531,-304.193852,0.000256,7]
[361873207,1747859442540,-1000.0,0.000256,5]
[361873208,1747859442552,-150.0,0.000256,30]
[361873209,1747859442562,-202.640228,0.000256,2]
[361873210,1747859442571,-314.5140147,0.000256,30]
[361873211,1747859442581,-534.95,0.00025601,2]
[361873212,1747859442591,-430.0,0.00025601,2]
[361873213,1747859442600,-430.0,0.00025601,2]
[361873214,1747859442610,-371.41,0.00025601,2]
[361873215,1747859442619,-203.86,0.00025601,2]
[361873216,1747859442629,-151.0,0.00025613,7]
[361873217,1747859442639,-456.852901,0.00025613,7]
[361873218,1747859442648,-456.852901,0.00025613,7]
[361873219,1747859442657,-151.0,0.00025613,7]
[361873220,1747859442667,-151.0,0.00025619,7]
[361873221,1747859442677,-151.0,0.00025619,7]
[361873222,1747859442686,-500.0,0.00025658,9]
[361873223,1747859442696,-163.483765,0.0002568,20]
[361873224,1747859442706,-152.282009,0.0002568,20]
[361873225,1747859442715,-667.72,0.0002568,7]
[361873226,1747859442725,-176.801964,0.00025689,30]
[361873227,1747859442735,-151.0,0.00025689,7]
[361873228,1747859442744,-163.483765,0.00025689,30]
[361873229,1747859442754,-152.282009,0.00025689,30]
[361873230,1747859442764,-160.0,0.00025695,4]
[361873231,1747859442773,-160.0,0.00025695,5]
[361873232,1747859442783,-75532.88755543,0.000257,2]
[361873233,1747859442792,-10000.0,0.000257,7]
[361873234,1747859442802,-10000.0,0.000257,7]
[361873235,1747859442812,-5942.0,0.000257,5]
[361873236,1747859442821,-236.632824,0.000257,7]
[361873237,1747859442831,-151.0,0.000257,7]
[361873238,1747859442840,-151.0,0.000257,7]
[361873239,1747859442849,-151.0,0.000257,7]
[361873240,1747859442859,-151.0,0.000257,7]
[361873241,1747859442868,-456.852901,0.000257,7]
[361873242,1747859442878,-456.852901,0.000257,7]
[361873243,1747859442888,-456.852901,0.000257,7]
[361873244,1747859443002,-456.852901,0.000257,7]
[361873245,1747859443012,-151.0,0.000257,7]
[361873246,1747859443022,-151.0,0.000257,7]
[361873247,1747859443031,-151.0,0.000257,7]
[361873248,1747859443041,-151.0,0.000257,7]
[361873249,1747859443050,-160.0,0.000257,30]
[361873250,1747859443059,-304.193852,0.000257,7]
[361873251,1747859443069,-304.193852,0.000257,7]
[361873252,1747859443078,-304.193852,0.000257,7]
[361873253,1747859443088,-304.193852,0.000257,7]
[361873254,1747859443097,-151.0,0.000257,7]
[361873256,1747859443108,-285.626464,0.000257,7]
[361873258,1747859443118,-151.0,0.000257,7]
[361873259,1747859443127,-151.0,0.000257,7]
[361873260,1747859443136,-1099.293196,0.000257,2]
[361873261,1747859443146,-1099.293196,0.000257,2]
[361873262,1747859443155,-1099.293196,0.000257,2]
[361873263,1747859443165,-1099.293196,0.000257,2]
[361873265,1747859443174,-686.36074,0.000257,7]
[361873266,1747859443183,-686.36074,0.000257,7]
[361873267,1747859443192,-686.36074,0.000257,7]
[361873268,1747859443201,-686.36074,0.000257,7]
[361873269,1747859443210,-344.754094,0.000257,7]
[361873270,1747859443220,-344.754094,0.000257,7]
[361873271,1747859443229,-344.754094,0.000257,7]
[361873272,1747859443238,-344.754094,0.000257,7]
[361873273,1747859443248,-151.0,0.000257,7]
[361873274,1747859443257,-151.0,0.000257,7]
[361873275,1747859443266,-151.0,0.000257,7]
[361873277,1747859443275,-292.804001,0.000257,7]
[361873278,1747859443285,-158.383955,0.000257,7]
[361873279,1747859443295,-158.383955,0.000257,7]
[361873280,1747859443304,-158.383955,0.000257,7]
[361873281,1747859443313,-158.383955,0.000257,7]
[361873282,1747859443323,-151.0,0.000257,7]
[361873283,1747859443333,-228.51788,0.000257,7]
[361873284,1747859443342,-151.0,0.000257,7]
[361873285,1747859443352,-434.693514,0.000257,7]
[361873286,1747859443363,-434.693514,0.000257,7]
[361873287,1747859443373,-902.010721,0.000257,7]
[361873289,1747859443382,-902.010721,0.000257,7]
[361873290,1747859443392,-434.693514,0.000257,7]
[361873291,1747859443401,-434.693514,0.000257,7]
[361873292,1747859443411,-902.010721,0.000257,7]
[361873293,1747859443420,-902.010721,0.000257,7]
[361873294,1747859443430,-191.31925,0.000257,7]
[361873296,1747859443440,-191.31925,0.000257,7]
[361873298,1747859443449,-1696.439124,0.000257,7]
[361873300,1747859443458,-1696.439124,0.000257,7]
[361873302,1747859443468,-1696.439124,0.000257,7]
[361873304,1747859443478,-1696.439124,0.000257,7]
[361873306,1747859443488,-153.010939,0.000257,7]
[361873308,1747859443501,-153.010937,0.000257,7]
[361873310,1747859443510,-6152.64392236,0.00025721,2]
[361873312,1747859443520,-2102.7778143,0.00025728,13]
[361873314,1747859443529,-3148.95120872,0.00025733,2]
[361873316,1747859443539,-500.0,0.00025742,30]
[361873318,1747859443548,-8975.75,0.00025753,2]
[361873320,1747859443558,-567.11,0.00025753,2]
[361873322,1747859443567,-536.01,0.00025753,2]
[361873324,1747859443577,-438.56,0.00025753,2]
[361873326,1747859443586,-363.5769684,0.00025753,2]
[361873328,1747859443596,-363.5769684,0.00025753,2]
[361873330,1747859443606,-363.5769684,0.00025753,2]
[361873332,1747859443615,-363.5769684,0.00025753,2]
[361873334,1747859443624,-361.8466203,0.00025753,2]
[361873336,1747859443632,-20784.38,0.000258,2]
[361873337,1747859443641,-813.63,0.000258,31]
[361873339,1747859443650,-813.63,0.000258,31]
[361873341,1747859443660,-813.63,0.000258,31]
[361873343,1747859443669,-813.63,0.000258,31]
[361873345,1747859443678,-813.63,0.000258,31]
[361873348,1747859443688,-813.63,0.000258,31]
[361873351,1747859443698,-813.63,0.000258,31]
[361873354,1747859443707,-813.63,0.000258,31]
[361873357,1747859443717,-813.63,0.000258,31]
[361873360,1747859443727,-813.63,0.000258,31]
[361873363,1747859443736,-813.63,0.000258,31]
[361873366,1747859443745,-813.63,0.000258,31]
[361873369,1747859443755,-813.63,0.000258,31]
[361873372,1747859443765,-813.63,0.000258,31]
[361873375,1747859443774,-813.63,0.000258,31]
[361873378,1747859443784,-813.63,0.000258,31]
[361873380,1747859443793,-813.63,0.000258,31]
[361873382,1747859443803,-813.63,0.000258,31]
[361873384,1747859443812,-813.63,0.000258,31]
[361873386,1747859443821,-813.63,0.000258,31]
[361873388,1747859443831,-813.63,0.000258,31]
[361873390,1747859443841,-813.63,0.000258,31]
[361873392,1747859443851,-813.63,0.000258,31]
[361873394,1747859443862,-813.63,0.000258,31]
[361873396,1747859443872,-151.0,0.00025805,7]
[361873398,1747859443881,-151.0,0.00025805,7]
[361873400,1747859443890,-1099.293196,0.00025805,2]
[361873402,1747859443900,-1099.293196,0.00025805,2]
[361873404,1747859443909,-1099.293196,0.00025805,2]
[361873406,1747859443918,-1099.29320447,0.00025805,2]
[361873408,1747859443927,-686.36074,0.00025805,7]
[361873410,1747859443938,-686.36074,0.00025805,7]
[361873412,1747859443947,-686.36074,0.00025805,7]
[361873414,1747859443956,-686.36075,0.00025805,7]
[361873415,1747859443965,-434.693514,0.00025805,7]
[361873416,1747859443974,-902.010721,0.00025805,7]
[361873417,1747859443983,-434.693511,0.00025805,7]
[361873419,1747859443992,-902.010713,0.00025805,7]
[361873420,1747859444002,-344.754094,0.00025821,7]
[361873421,1747859444011,-344.754094,0.00025821,7]
[361873422,1747859444020,-344.754094,0.00025821,7]
[361873424,1747859444029,-344.754097,0.00025821,7]
[361873425,1747859444038,-151.0,0.00025821,7]
[361873427,1747859444048,-151.0,0.00025821,7]
[361873429,1747859444057,-158.383955,0.00025821,7]
[361873431,1747859444066,-158.383955,0.00025821,7]
[361873432,1747859444076,-158.383955,0.00025821,7]
[361873434,1747859444085,-158.383949,0.00025821,7]
[361873436,1747859444094,-1696.439124,0.00025821,7]
[361873439,1747859444104,-1696.439133,0.00025821,7]
[361873441,1747859444115,-200.0,0.00025824,120]
[361873443,1747859444124,-472517.60726026,0.00025833,20]
[361873453,1747859444212,-25310.86302031,0.00025833,20]
[361873463,1747859444333,430.0,0.0002231,2]
[361873464,1747859444366,161.18,0.00022584,2]
[361873469,1747859444465,430.0,0.00021917,2]
[361873473,1747859444495,430.0,0.00022191,2]
[361873483,1747859444599,430.0,0.00021917,2]
[361873484,1747859444629,430.0,0.00022191,2]
[361873485,1747859444642,-430.0,0.00023835,2]
[361873486,1747859444652,-145.50391567,0.00024109,2]
[361873487,1747859444697,430.0,0.00023103,2]
[361873488,1747859444722,470.0,0.00022313,2]
[361873489,1747859444754,-430.0,0.00023376,2]
[361873490,1747859444764,-111.6903197,0.00023377,2]
[361873491,1747859445532,-268.49124617,0.00023377,2]
[361873492,1747859445542,-430.0,0.0002365,2]
[361873493,1747859445552,-284.49608433,0.00024109,2]
[361873494,1747859445561,-146.59887153,0.00024109,2]
[361873514,1747859446639,-350.0,0.00023376,2]
[361873515,1747859446650,-443.68,0.00023376,2]
[361873516,1747859446660,-283.40112847,0.00024109,2]
[361873517,1747859446670,-430.0,0.00024383,2]
[361873518,1747859446680,-136.61887153,0.00024383,2]
[361873519,1747859446691,-293.38112847,0.00024383,2]
[361873520,1747859446700,-430.0,0.00024657,2]
[361873521,1747859446710,-430.0,0.00024657,2]
[361873522,1747859446720,-960.0,0.00024775,2]
[361873523,1747859446730,-151.0,0.000249,2]
[361873524,1747859446739,-430.0,0.00024931,2]
[361873525,1747859446749,-430.0,0.00024931,2]
[361873526,1747859446759,-430.0,0.00025205,2]
[361873527,1747859446768,-430.0,0.00025205,2]
[361873528,1747859446778,-193.6,0.00025479,2]
[361873529,1747859446788,-430.0,0.00025479,2]
[361873530,1747859446797,-178.53146995,0.00025753,2]
[361873531,1747859446810,-251.46853005,0.00025753,2]
[361873533,1747859446820,-657977.07463373,0.00025833,20]
[361873534,1747859446831,-441.78273,0.00025833,20]
[361873535,1747859446843,-645.5,0.00025833,20]
[361873536,1747859446854,-35064.66767441,0.00025833,20]
[361873539,1747859451058,300.0,0.00022311,2]
[361873540,1747859458302,151.0,0.00023049,7]
[361873541,1747859458658,430.0,0.00022311,2]
[361873542,1747859461021,370.0,0.0002231,2]
[361873543,1747859461048,430.0,0.00022311,2]
[361873544,1747859464984,320.0,0.00022313,2]
[361873545,1747859467093,430.0,0.00022313,2]
[361873546,1747859468923,430.0,0.00021917,2]
[361873547,1747859469368,430.0,0.00022191,2]
[361873548,1747859469702,430.0,0.00022465,2]
[361873549,1747859469832,5000.0,0.00023053,2]
[361873550,1747859470037,430.0,0.00022739,2]
[361873551,1747859470433,430.0,0.00023013,2]
[361873552,1747859473862,347.14812953,0.00023103,2]
[361873553,1747859475812,430.0,0.00023103,2]
[361873554,1747859477283,430.0,0.00021917,2]
[361873555,1747859477797,430.0,0.00022311,2]
[361873556,1747859478391,430.0,0.00022585,2]
[361873557,1747859480539,430.0,0.00022313,2]
[361873558,1747859485101,406.26,0.0002231,2]
[361873559,1747859486580,430.0,0.00021917,2]
[361873560,1747859487773,430.0,0.00021917,2]
[361873561,1747859488031,430.0,0.00022191,2]
[361873562,1747859488285,430.0,0.00022465,2]
[361873563,1747859488560,430.0,0.00022739,2]
[361873564,1747859488809,430.0,0.00023013,2]
[361873565,1747859492577,430.0,0.00022313,2]
[361873566,1747859494195,430.0,0.00022311,2]
[361873567,1747859494257,430.0,0.00023103,2]
[361873568,1747859494807,176.17,0.00022313,2]
[361873569,1747859496829,578.96,0.00022313,2]
[361873570,1747859498722,788.5,0.00022313,2]
[361873571,1747859498970,788.5,0.00022587,2]
[361873572,1747859499566,788.5,0.00022861,2]
[361873573,1747859499939,788.5,0.00023135,2]
[361873574,1747859506159,420.0,0.00022311,2]
[361873575,1747859506392,470.0,0.0002231,2]
[361873576,1747859506662,430.0,0.00021917,2]
[361873577,1747859506993,430.0,0.00022191,2]
[361873578,1747859507710,430.0,0.00021917,2]
[361873579,1747859507948,430.0,0.00022191,2]
[361873580,1747859510715,430.0,0.0002231,2]
[361873581,1747859510967,430.0,0.00022584,2]
[361873582,1747859511280,430.0,0.00022858,2]
[361873583,1747859511721,430.0,0.00023132,2]
[361873584,1747859512674,430.0,0.00022311,2]
[361873585,1747859514481,430.0,0.00022311,2]
[361873586,1747859520295,430.0,0.0002231,2]
[361873587,1747859522628,420.0,0.00022311,2]
[361873588,1747859526776,430.0,0.00022311,2]
[361873589,1747859527578,430.0,0.0002231,2]
[361873590,1747859529782,430.0,0.0002231,2]
[361873591,1747859531615,430.0,0.0002231,2]
[361873592,1747859532386,436.35,0.00022311,2]
[361873593,1747859533424,430.0,0.0002231,2]
[361873594,1747859534552,450.0,0.00021917,2]
[361873595,1747859535320,430.0,0.0002231,2]
[361873596,1747859536413,430.0,0.00021917,2]
[361873597,1747859536659,430.0,0.00022191,2]
[361873598,1747859542166,289.78,0.00021917,2]
[361873599,1747859543997,554.1,0.00021917,2]
[361873600,1747859546150,430.0,0.00022311,2]
[361873601,1747859546382,164.99,0.00022585,2]
[361873602,1747859548562,430.0,0.00021917,2]
[361873603,1747859548701,430.0,0.00021917,2]
[361873604,1747859548818,430.0,0.00022191,2]
[361873605,1747859548935,430.0,0.00022191,2]
[361873606,1747859549060,430.0,0.00022465,2]
[361873607,1747859549693,430.0,0.00022739,2]
[361873608,1747859549972,430.0,0.00023013,2]
[361873609,1747859622673,158.281874,0.00013699,2]
[361873611,1747860357150,-5000.0,0.00020179,2]
[361873612,1747860357172,-151.25167377,0.00020383,2]
[361873613,1747860357201,-1631.55566945,0.000209,4]
[361873614,1747860357223,-443.921524,0.00020912,2]
[361873615,1747860357247,-1200.0,0.00021071,2]
[361873616,1747860357271,-300.0,0.00021071,2]
[361873617,1747860357300,-1631.55566944,0.00021072,4]
[361873618,1747860357324,-300.0,0.00021244,2]
[361873619,1747860357347,-300.0,0.00021244,2]
[361873620,1747860357369,-300.0,0.00021244,2]
[361873621,1747860357395,-1631.55566944,0.00021245,4]
[361873622,1747860357416,-158.281874,0.00021404,2]
[361873623,1747860357442,-1631.55566944,0.00021417,5]
[361873624,1747860357466,-1631.55566944,0.0002159,5]
[361873625,1747860357490,-1631.55566944,0.00021762,5]
[361873626,1747860357511,-500.0,0.00021916,2]
[361873627,1747860357533,-500.0,0.00021916,2]
[361873628,1747860357554,-500.0,0.00021916,2]
[361873629,1747860357579,-500.0,0.00021916,2]
[361873630,1747860357606,-500.0,0.00021916,2]
[361873631,1747860357629,-500.0,0.00021916,2]
[361873632,1747860357651,-500.0,0.00021916,2]
[361873633,1747860357672,-567.22642578,0.00021916,2]
[361873634,1747860357695,-500.0,0.00021916,2]
[361873635,1747860357722,-500.0,0.00021916,2]
[361873636,1747860357749,-362.66322066,0.00021916,2]
[361873637,1747860357775,-179.45626052,0.00021916,2]
[361873638,1747860357803,-413.72301207,0.00021916,2]
[361873639,1747860357829,-500.0,0.00021916,2]
[361873640,1747860357853,-500.0,0.00021916,2]
[361873641,1747860357876,-500.0,0.00021916,2]
[361873642,1747860357901,-459.53036779,0.00021916,2]
[361873643,1747860357927,-500.0,0.00021916,2]
[361873644,1747860357950,-500.0,0.00021916,2]
[361873645,1747860357975,-500.0,0.00021916,2]
[361873646,1747860357998,-500.0,0.00021916,2]
[361873647,1747860358021,-500.0,0.00021916,2]
[361873648,1747860358043,-306.60870845,0.00021917,2]
[361873649,1747860358064,-430.0,0.00021917,2]
[361873650,1747860358241,-430.0,0.00021917,2]
[361873651,1747860358264,-550.0,0.00021917,2]
[361873652,1747860358287,-430.0,0.00021917,2]
[361873653,1747860358311,-430.0,0.00021917,2]
[361873654,1747860358334,-420.0,0.00021917,2]
[361873655,1747860358356,-430.0,0.00021917,2]
[361873656,1747860358378,-430.0,0.00021917,2]
[361873657,1747860358400,-430.0,0.00021917,2]
[361873658,1747860358422,-430.0,0.00021917,2]
[361873659,1747860358450,-430.0,0.00021917,2]
[361873660,1747860358472,-430.0,0.00021917,2]
[361873661,1747860358495,-430.0,0.00021917,2]
[361873662,1747860358517,-430.0,0.00021917,2]
[361873663,1747860358540,-430.0,0.00021917,2]
[361873664,1747860358563,-430.0,0.00021917,2]
[361873665,1747860358586,-430.0,0.00021917,2]
[361873666,1747860358608,-400.0,0.00021917,2]
[361873667,1747860358631,-430.0,0.00021917,2]
[361873668,1747860358654,-430.0,0.00021917,2]
[361873669,1747860358679,-232.95398784,0.00021917,2]
[361873670,1747860358708,-430.0,0.00021917,2]
[361873671,1747860358733,-420.0,0.00021917,2]
[361873672,1747860358757,-430.0,0.00021917,2]
[361873673,1747860358781,-430.0,0.00021917,2]
[361873674,1747860358807,-430.0,0.00021917,2]
[361873675,1747860358830,-430.0,0.00021917,2]
[361873676,1747860358853,-430.0,0.00021917,2]
[361873677,1747860358877,-400.0,0.00021917,2]
[361873678,1747860358901,-370.0,0.00021917,2]
[361873679,1747860358921,-400.0,0.00021917,2]
[361873680,1747860358948,-430.0,0.00021917,2]
[361873681,1747860358970,-487.0002271,0.00021917,2]
[361873682,1747860358991,-430.0,0.00021917,2]
[361873683,1747860359013,-407.08946938,0.00021917,2]
[361873684,1747860359035,-430.0,0.00021917,2]
[361873685,1747860359056,-430.0,0.00021917,2]
[361873686,1747860359077,-430.0,0.00021917,2]
[361873687,1747860359098,-430.0,0.00021917,2]
[361873688,1747860359118,-430.0,0.00021917,2]
[361873689,1747860359139,-430.0,0.00021917,2]
[361873690,1747860359161,-285.31245619,0.00021917,2]
[361873691,1747860359181,-430.0,0.00021917,2]
[361873692,1747860359202,-430.0,0.00021917,2]
[361873693,1747860359222,-450.0,0.00021917,2]
[361873694,1747860359243,-430.0,0.00021917,2]
[361873695,1747860359264,-340.0,0.00021917,2]
[361873696,1747860359284,-430.0,0.00021917,2]
[361873697,1747860359305,-420.0,0.00021917,2]
[361873698,1747860359325,-400.0,0.00021917,2]
[361873699,1747860359347,-430.0,0.00021917,2]
[361873700,1747860359368,-501.74575549,0.00021917,2]
[361873701,1747860359389,-430.0,0.00021917,2]
[361873702,1747860359410,-430.0,0.00021917,2]
[361873703,1747860359430,-430.0,0.00021917,2]
[361873704,1747860359456,-430.0,0.00021917,2]
[361873705,1747860359477,-430.0,0.00021917,2]
[361873706,1747860359497,-450.0,0.00021917,2]
[361873707,1747860359518,-450.0,0.00021917,2]
[361873708,1747860359539,-427.50915335,0.00021917,2]
[361873709,1747860359559,-430.0,0.00021917,2]
[361873710,1747860359580,-430.0,0.00021917,2]
[361873711,1747860359601,-430.0,0.00021917,2]
[361873712,1747860359622,-430.0,0.00021917,2]
[361873713,1747860359643,-430.0,0.00021917,2]
[361873714,1747860359665,-366.92,0.00021917,2]
[361873715,1747860359689,-430.0,0.00021917,2]